bitfinex-derivatives/quotes_SOLF0:USTF0_20250507
["timestamp","ask_amount","ask_price","bid_price","bid_amount"]
[1746579384611,6.7178,148.87,148.84,6.7185]
[1746579385806,6.7181,148.86,148.83,6.7192]
[1746579386314,30.04,148.88,148.81,30.08]
[1746579386515,6.7177,148.87,148.81,30.08]
[1746579387016,30.04,148.88,148.78,6.2045]
[1746579387215,30.04,148.88,148.78,36.2845]
[1746579387412,30.04,148.88,148.8,7.10464889]
[1746579387605,36.7573,148.88,148.84,6.7186]
[1746579387809,30.04,148.88,148.84,6.7186]
[1746579388110,30.08,148.9,148.85,6.7184]
[1746579388314,30.04,148.89,148.83,7.10464889]
[1746579388805,6.7169,148.89,148.86,6.718]
[1746579389213,30.04,148.9,148.83,9.12204889]
[1746579389912,6.7168,148.89,148.86,6.7179]
[1746579390415,6.7174,148.88,148.85,6.7183]
[1746579390619,30.04,148.9,148.83,2.0174]
[1746579390818,30.04,148.9,148.82,30.08]
[1746579391318,6.7178,148.87,148.84,6.7186]
[1746579391819,30.04,148.9,148.82,30.08]
[1746579392522,30.04,148.9,148.79,32.1556]
[1746579392915,30.04,148.9,148.81,6.7199]
[1746579393218,30.04,148.9,148.79,32.1556]
[1746579393518,30.04,148.9,148.78,2.042]
[1746579393718,1.19244449,148.89,148.78,2.042]
[1746579393920,30.04,148.88,148.78,2.042]
[1746579394120,34.0011,148.88,148.78,2.042]
[1746579394321,34.0011,148.88,148.8,6.7204]
[1746579396828,6.7197,148.83,148.8,6.7204]
[1746579397028,30.04,148.84,148.81,6.7199]
[1746579397427,36.7592,148.84,148.81,6.7199]
[1746579399428,6.7192,148.84,148.81,6.7199]
[1746579399925,6.7195,148.83,148.8,6.7205]
[1746579401728,30.04,148.85,148.76,616.7586]
[1746579402027,6.7206,148.81,148.78,6.7214]
[1746579403032,6.7206,148.81,148.79,6.7211]
[1746579403728,30.04,148.84,148.76,36.3786]
[1746579403918,60.08,148.84,148.76,36.3786]
[1746579404227,6.7196,148.83,148.76,36.3786]
[1746579404428,60.08,148.84,148.76,36.3786]
[1746579404630,30.04,148.84,148.76,36.3786]
[1746579404929,36.7593,148.84,148.76,36.3786]
[1746579405132,30.04,148.84,148.78,7.10464889]
[1746579405333,6.7194,148.83,148.78,7.10464889]
[1746579405526,6.7194,148.83,148.8,6.7205]
[1746579406235,6.7198,148.82,148.8,6.7205]
[1746579407932,6.7196,148.83,148.8,6.7205]
[1746579408431,6.7196,148.83,148.81,6.7202]
[1746579410235,6.7196,148.83,148.8,6.7206]
[1746579411741,6.7201,148.82,148.79,6.721]
[1746579413039,6.721,148.8,148.77,6.7219]
[1746579413239,30.04,148.84,148.76,36.3786]
[1746579413435,30.04,148.83,148.76,32.2138]
[1746579413633,6.7216,148.78,148.76,38.9363]
[1746579414234,6.7221,148.77,148.76,30.04]
[1746579414431,30.02,148.8,148.73,37.14464889]
[1746579414635,30.02,148.8,148.76,6.7225]
[1746579414933,6.7214,148.79,148.76,6.7225]
[1746579415538,6.7217,148.78,148.76,6.7225]
[1746579416649,6.7217,148.78,148.75,6.7228]
[1746579416847,6.7221,148.77,148.73,37.14464889]
[1746579417147,6.7221,148.77,148.74,6.7231]
[1746579417750,6.7225,148.76,148.73,37.14464889]
[1746579418244,6.7231,148.75,148.72,6.1139]
[1746579418444,30.02,148.76,148.71,158.86595753]
[1746579418846,6.7233,148.75,148.73,6.7238]
[1746579419046,30.02,148.76,148.73,6.7238]
[1746579419543,36.7428,148.76,148.73,6.7238]
[1746579420151,6.723,148.75,148.72,6.7241]
[1746579420751,36.7427,148.76,148.73,6.7238]
[1746579421650,30.02,148.76,148.71,7.10464889]
[1746579422050,60.06,148.79,148.71,7.10464889]
[1746579422249,66.7815,148.79,148.76,6.7224]
[1746579422751,60.06,148.79,148.74,7.10464889]
[1746579422947,36.7412,148.79,148.74,37.12464889]
[1746579423248,6.7212,148.79,148.74,37.12464889]
[1746579423551,6.7212,148.79,148.76,6.7224]
[1746579424142,36.7409,148.8,148.77,6.722]
[1746579424753,6.7212,148.79,148.77,6.722]
[1746579424953,6.7212,148.79,148.76,6.7223]
[1746579427849,6.7212,148.79,148.75,6.2411]
[1746579428255,6.7216,148.78,148.76,6.7223]
[1746579429056,6.7213,148.79,148.76,6.7223]
[1746579429258,30.02,148.8,148.76,6.7223]
[1746579429557,6.7214,148.79,148.76,6.7223]
[1746579429758,6.7214,148.79,148.77,6.722]
[1746579430853,30.02,148.83,148.75,6.2411]
[1746579431055,30.02,148.83,148.76,6.62296578]
[1746579431257,6.7206,148.81,148.78,6.7214]
[1746579431451,30.02,148.83,148.78,6.7214]
[1746579433055,6.7208,148.8,148.78,6.7214]
[1746579434354,30.02,148.82,148.79,6.721]
[1746579435161,30.02,148.82,148.74,30.02]
[1746579435555,6.722,148.78,148.74,36.743]
[1746579436859,6.7222,148.77,148.74,36.743]
[1746579437660,37.3618,148.78,148.75,6.723]
[1746579438162,1.17004287,148.85,148.75,51.54929778]
[1746579438362,30.62,148.91,148.84,7.10464889]
[1746579438556,23.69994045,148.92,148.84,7.10464889]
[1746579439062,54.29994045,148.92,148.87,7.10464889]
[1746579439263,61.01554045,148.92,148.88,6.7168]
[1746579439457,23.69994045,148.92,148.88,6.7168]
[1746579439655,54.27994045,148.92,148.88,6.7168]
[1746579440861,6.716,148.91,148.88,6.7168]
[1746579441062,54.27994045,148.92,148.87,6.7174]
[1746579441258,23.69994045,148.92,148.87,6.7174]
[1746579441459,6.7165,148.9,148.87,6.7174]
[1746579442057,6.7167,148.89,148.86,36.7378]
[1746579445468,6.7164,148.9,148.87,6.7175]
[1746579445766,30.5,148.91,148.86,30.02]
[1746579446069,6.7167,148.89,148.86,36.7377]
[1746579446368,30.5,148.91,148.86,30.02]
[1746579446570,30.4,148.91,148.86,30.02]
[1746579447568,6.7158,148.91,148.87,6.7175]
[1746579447768,30.36,148.92,148.86,30.02]
[1746579448269,6.7156,148.92,148.86,30.02]
[1746579448570,60.38,148.93,148.86,30.02]
[1746579449168,6.7154,148.92,148.88,6.7171]
[1746579449862,6.7154,148.92,148.89,6.7166]
[1746579450572,60.38,148.93,148.86,30.02]
[1746579451174,6.716,148.91,148.88,6.7171]
[1746579452570,6.7154,148.92,148.89,6.7166]
[1746579452776,6.7154,148.92,148.86,30.02]
[1746579453375,6.7154,148.92,148.89,6.7164]
[1746579456379,36.9549,148.93,148.86,30.02]
[1746579456580,6.7149,148.93,148.86,30.02]
[1746579456783,36.8949,148.93,148.86,30.02]
[1746579457075,6.7149,148.93,148.86,30.02]
[1746579457380,6.7149,148.93,148.9,6.7159]
[1746579459583,6.7153,148.92,148.9,6.7159]
[1746579460983,6.7153,148.92,148.89,6.7165]
[1746579461684,6.7153,148.92,148.9,6.7161]
[1746579463685,6.7153,148.92,148.89,6.7164]
[1746579465485,6.7146,148.94,148.91,6.7155]
[1746579465683,30.3,149.01,148.92,7.10498151]
[1746579465884,30.04,149.0,148.93,30.3]
[1746579466389,6.7129,148.98,148.95,6.7137]
[1746579469094,36.7724,148.99,148.96,6.7134]
[1746579470294,6.7127,148.98,148.96,6.7134]
[1746579472101,6.7127,148.98,148.95,6.7137]
[1746579477506,30.06,148.99,148.94,6.7142]
[1746579478203,6.7133,148.97,148.94,6.7142]
[1746579479301,6.7136,148.96,148.93,37.0147]
[1746579480309,6.7136,148.96,148.91,6.1002]
[1746579480310,6.714,148.95,148.92,6.7152]
[1746579480818,30.06,148.99,148.9,29.98]
[1746579481116,6.7146,148.94,148.91,6.7155]
[1746579481416,30.0,148.95,148.9,29.98]
[1746579482506,30.0,148.95,148.9,37.08498151]
[1746579482711,30.0,148.96,148.9,37.08498151]
[1746579483716,30.0,148.96,148.95,6.7139]
[1746579486909,36.7123,148.99,148.93,7.10498151]
[1746579487116,29.98,149.0,148.93,7.10498151]
[1746579487317,4.0366,149.04,148.97,6.7128]
[1746579487318,30.0,148.99,148.97,6.7128]
[1746579490915,6.7119,149.0,148.97,6.7128]
[1746579491419,36.6919,149.0,148.97,6.7128]
[1746579491713,36.6914,149.01,148.98,6.7123]
[1746579492115,6.7114,149.01,148.98,6.7123]
[1746579492920,36.691,149.02,148.99,6.7121]
[1746579493119,29.98,149.02,148.99,6.7121]
[1746579493921,36.691,149.02,148.99,6.7121]
[1746579494115,29.98,149.02,148.99,6.7121]
[1746579494919,34.0166,149.04,148.99,6.7121]
[1746579495123,29.98,149.02,148.99,6.7121]
[1746579495522,610.38,149.07,148.98,29.98]
[1746579495719,29.98,149.06,148.98,29.98]
[1746579496920,6.7115,149.01,148.98,29.98]
[1746579497221,29.98,149.02,148.98,29.98]
[1746579498125,6.712,149.0,148.98,29.98]
[1746579498425,29.98,149.02,148.98,29.98]
[1746579498722,29.98,149.02,148.95,36.0726]
[1746579499119,29.98,149.02,148.95,42.7862]
[1746579499322,6.7128,148.98,148.95,42.7862]
[1746579499516,29.98,149.02,148.95,36.0726]
[1746579500224,6.7124,148.99,148.96,6.7134]
[1746579500425,29.98,149.02,148.96,6.7134]
[1746579500826,29.98,149.02,148.95,33.9761]
[1746579501027,29.98,149.02,148.91,35.9978]
[1746579502421,6.7124,148.99,148.92,6.60593333]
[1746579502627,6.7124,148.99,148.91,35.9978]
[1746579502824,6.7124,148.99,148.92,6.61196721]
[1746579503025,6.7124,148.99,148.91,35.9978]
[1746579503225,6.7124,148.99,148.92,6.6114813]
[1746579503427,6.7124,148.99,148.91,35.9978]
[1746579503627,6.7124,148.99,148.96,6.7134]
[1746579506129,6.7126,148.98,148.96,6.7134]
[1746579509131,6.7131,148.97,148.91,35.9978]
[1746579509333,6.7131,148.97,148.92,6.61987025]
[1746579509334,29.98,148.97,148.92,6.61987025]
[1746579509525,29.98,148.97,148.93,6.61987025]
[1746579509824,29.98,148.97,148.93,6.7146]
[1746579510136,6.7142,148.95,148.92,6.7151]
[1746579510327,6.7142,148.95,148.93,6.62024764]
[1746579510525,6.7142,148.95,148.91,35.9978]
[1746579510725,6.7144,148.94,148.92,6.62229126]
[1746579510923,6.7144,148.94,148.93,6.62229126]
[1746579511130,29.98,148.97,148.91,29.98]
[1746579511330,6.7153,148.92,148.91,29.98]
[1746579511530,29.98,148.93,148.89,6.7164]
[1746579511831,6.7156,148.92,148.89,6.7164]
[1746579512937,6.7158,148.91,148.88,43.78198151]
[1746579514033,6.7158,148.91,148.89,6.7166]
[1746579514533,6.7158,148.91,148.88,43.78198151]
[1746579516139,6.7158,148.91,148.88,36.677]
[1746579516329,6.7163,148.9,148.88,29.96]
[1746579517639,6.7159,148.91,148.88,36.6771]
[1746579518139,6.7155,148.92,148.89,6.7166]
[1746579519338,36.695,148.93,148.9,6.7161]
[1746579522237,6.715,148.93,148.9,6.7161]
[1746579522443,6.7154,148.92,148.89,6.7165]
[1746579522841,6.7154,148.92,148.9,6.7162]
[1746579523945,6.715,148.93,148.88,29.96]
[1746579524344,6.715,148.93,148.9,6.7161]
[1746579525245,29.98,148.94,148.91,6.7154]
[1746579526154,36.6947,148.94,148.91,6.7154]
[1746579527041,6.7149,148.93,148.91,6.7154]
[1746579527244,6.7149,148.93,148.9,6.716]
[1746579527643,6.7149,148.93,148.91,6.7157]
[1746579527846,6.7149,148.93,148.88,29.96]
[1746579528246,6.7149,148.93,148.9,6.7158]
[1746579529245,6.7155,148.92,148.89,6.7163]
[1746579529743,6.7155,148.92,148.9,6.7161]
[1746579529946,6.7149,148.93,148.9,6.7161]
[1746579530244,59.92,148.95,148.9,6.7161]
[1746579530546,6.7146,148.94,148.91,6.7155]
[1746579531144,6.7149,148.93,148.91,6.7155]
[1746579533049,36.6746,148.94,148.91,6.7155]
[1746579533546,36.6746,148.94,148.92,6.7153]
[1746579534247,36.6746,148.94,148.91,6.7155]
[1746579534449,36.6746,148.94,148.88,29.96]
[1746579534849,6.7137,148.96,148.88,29.96]
[1746579535049,29.98,148.98,148.89,7.10498151]
[1746579535242,29.96,148.97,148.89,9.17088151]
[1746579535442,6.7133,148.97,148.9,4.2587]
[1746579535842,6.7133,148.97,148.94,6.714]
[1746579536549,6.7135,148.96,148.94,6.714]
[1746579536743,59.94,148.98,148.94,6.714]
[1746579537049,6.7132,148.97,148.94,6.714]
[1746579537749,59.94,148.98,148.94,6.714]
[1746579537750,6.7136,148.96,148.94,6.714]
[1746579539048,6.7133,148.97,148.94,6.714]
[1746579539251,6.7133,148.97,148.95,6.7139]
[1746579539451,66.6528,148.98,148.95,6.7139]
[1746579539848,29.98,148.98,148.95,6.7139]
[1746579540053,66.6528,148.98,148.95,6.7139]
[1746579541251,36.6728,148.98,148.95,6.7139]
[1746579542958,6.7128,148.98,148.95,6.7139]
[1746579543158,36.6723,148.99,148.92,37.08498151]
[1746579543459,36.6723,148.99,148.93,6.62261294]
[1746579543646,36.6723,148.99,148.96,6.7132]
[1746579543647,6.7123,148.99,148.96,6.7132]
[1746579543846,29.94,149.0,148.93,6.622809]
[1746579544053,59.9,149.0,148.92,67.04498151]
[1746579544253,29.96,149.0,148.93,6.62357394]
[1746579544549,29.96,149.0,148.92,67.04498151]
[1746579544748,29.96,149.0,148.97,6.7128]
[1746579544956,36.672,149.0,148.97,6.7128]
[1746579545349,36.672,149.0,148.96,6.7133]
[1746579545758,6.712,149.0,148.97,6.713]
[1746579546247,6.7123,148.99,148.97,6.713]
[1746579546446,29.94,149.03,148.98,6.7126]
[1746579546658,29.94,149.02,148.98,6.7126]
[1746579546957,6.7115,149.01,148.98,6.7126]
[1746579547151,6.7115,149.01,148.99,6.7121]
[1746579547357,6.7115,149.01,148.96,34.0979]
[1746579547557,6.711,149.02,148.96,34.0979]
[1746579548061,6.7105,149.03,148.97,6.64066613]
[1746579548252,29.94,149.06,148.98,13.74508935]
[1746579548454,6.7101,149.04,148.98,7.10498151]
[1746579548759,29.94,149.05,148.98,7.10498151]
[1746579549458,6.7101,149.04,149.0,6.7114]
[1746579549754,6.7101,149.04,148.98,7.10498151]
[1746579550149,6.7096,149.05,148.98,7.10498151]
[1746579550355,29.94,149.07,148.99,6.66233191]
[1746579550559,29.94,149.09,149.0,38.76181446]
[1746579550758,6.7086,149.07,149.01,7.10498151]
[1746579551648,29.94,149.17,149.04,6.65718151]
[1746579551855,31.13012846,149.16,149.07,6.7085]
[1746579552063,6.7066,149.12,149.07,6.7085]
[1746579552261,29.94,149.16,149.05,64.138]
[1746579552457,7.10498151,149.14,149.05,29.94]
[1746579552658,6.7084,149.08,149.05,29.94]
[1746579552855,29.94,149.13,149.05,6.7091]
[1746579553358,29.94,149.13,149.04,13.81448151]
[1746579553762,6.7082,149.08,149.04,13.81448151]
[1746579554162,29.94,149.13,149.05,6.7094]
[1746579554456,6.7079,149.09,149.05,6.7094]
[1746579555161,6.7083,149.08,149.04,13.81468151]
[1746579555461,6.7083,149.08,149.04,7.10498151]
[1746579555662,29.94,149.12,149.04,7.10498151]
[1746579555865,6.7078,149.09,149.05,6.7091]
[1746579556060,6.7078,149.09,149.04,7.10498151]
[1746579556364,29.92,149.1,149.04,7.10498151]
[1746579556757,29.94,149.12,149.04,7.10498151]
[1746579557057,29.92,149.11,149.06,6.7089]
[1746579557966,6.7078,149.09,149.06,6.7089]
[1746579558263,29.92,149.11,149.05,6.7093]
[1746579559072,29.92,149.11,149.06,6.709]
[1746579559666,29.92,149.11,149.04,7.10498151]
[1746579560166,36.6271,149.11,149.05,2.0143]
[1746579560366,6.7071,149.11,149.05,2.0143]
[1746579560867,6.7065,149.12,149.07,7.10498151]
[1746579561068,6.7065,149.12,149.07,37.02498151]
[1746579561259,29.94,149.13,149.07,29.92]
[1746579561571,6.7071,149.11,149.07,29.92]
[1746579561771,29.94,149.13,149.07,29.92]
[1746579561970,6.7066,149.12,149.07,29.92]
[1746579562470,6.7066,149.12,149.09,6.7075]
[1746579562669,6.7066,149.12,149.07,29.92]
[1746579562974,6.7066,149.12,149.08,6.708]
[1746579563271,6.7068,149.11,149.08,6.708]
[1746579563657,30.12,149.13,149.07,36.6283]
[1746579565067,6.7071,149.11,149.07,36.6283]
[1746579565269,30.12,149.13,149.07,36.6283]
[1746579565464,30.12,149.13,149.07,29.92]
[1746579565671,6.7079,149.09,149.06,6.7088]
[1746579566467,6.7074,149.1,149.07,6.7085]
[1746579566771,30.12,149.13,149.04,37.02498151]
[1746579567173,30.12,149.13,149.04,7.10498151]
[1746579567363,30.12,149.13,149.03,29.92]
[1746579567567,6.7085,149.08,149.05,6.7094]
[1746579567770,36.7885,149.08,149.05,6.7094]
[1746579568072,6.7086,149.07,149.04,6.7098]
[1746579568973,6.7086,149.07,149.05,6.7094]
[1746579569170,36.7882,149.08,149.05,6.7094]
[1746579571282,30.08,149.08,149.03,29.92]
[1746579571482,13.4095,149.16,149.04,7.10498151]
[1746579571774,6.707,149.11,149.07,6.7083]
[1746579572075,60.0,149.15,149.06,7.10498151]
[1746579572977,60.0,149.15,149.09,6.7076]
[1746579573377,60.0,149.15,149.06,7.10498151]
[1746579573578,6.7061,149.13,149.1,6.7071]
[1746579574681,60.0,149.15,149.07,30.0]
[1746579575382,6.7069,149.11,149.08,6.7078]
[1746579576278,6.7077,149.09,149.07,30.0]
[1746579577985,6.7077,149.09,149.07,36.7085]
[1746579578283,6.7077,149.09,149.04,2.0352]
[1746579578579,6.7077,149.09,149.05,30.0]
[1746579579080,6.7081,149.08,149.04,2.0352]
[1746579579277,6.7081,149.08,149.05,30.0]
[1746579579678,6.7081,149.09,149.05,30.0]
[1746579579878,29.92,149.11,149.05,30.0]
[1746579580183,29.92,149.11,149.06,6.7087]
[1746579580783,6.7078,149.09,149.06,6.7087]
[1746579581688,6.7082,149.08,149.05,36.7093]
[1746579584083,6.7086,149.07,149.05,36.7093]
[1746579585591,6.7083,149.08,149.05,36.7093]
[1746579587190,6.7083,149.08,149.06,6.709]
[1746579589385,6.7079,149.09,149.05,30.0]
[1746579590288,6.7082,149.08,149.05,30.0]
[1746579590491,29.92,149.1,149.05,30.0]
[1746579590886,6.7079,149.09,149.07,6.7085]
[1746579592094,6.7081,149.08,149.06,6.7089]
[1746579592293,29.92,149.1,149.05,30.0]
[1746579592794,6.7086,149.07,149.05,30.0]
[1746579593194,29.92,149.1,149.05,30.0]
[1746579594598,6.7078,149.09,149.06,6.709]
[1746579594794,6.7078,149.09,149.05,30.0]
[1746579595293,6.7078,149.09,149.06,6.7089]
[1746579595496,29.92,149.1,149.05,30.0]
[1746579595993,4.0886,149.16,149.08,6.708]
[1746579596196,30.0,149.14,149.08,6.708]
[1746579596489,6.7074,149.1,149.05,30.0]
[1746579596693,6.7074,149.1,149.07,6.7083]
[1746579597195,6.7071,149.11,149.05,30.0]
[1746579597494,36.6271,149.11,149.05,30.0]
[1746579597695,29.92,149.11,149.05,30.0]
[1746579597889,6.7074,149.1,149.07,6.7082]
[1746579600200,6.7076,149.09,149.06,6.7088]
[1746579600501,29.92,149.11,149.05,30.0]
[1746579600701,6.7079,149.09,149.05,30.0]
[1746579600992,30.0,149.14,149.05,30.0]
[1746579601197,29.9,149.13,149.08,7.10498151]
[1746579601395,29.9,149.17,149.11,6.7064]
[1746579601596,29.9,149.18,149.11,7.10498151]
[1746579601786,29.9,149.17,149.09,29.9]
[1746579602192,27.75034045,149.21,149.11,7.10498151]
[1746579602498,6.7039,149.18,149.14,6.7051]
[1746579602700,29.98,149.18,149.14,6.7051]
[1746579602897,29.98,149.18,149.13,29.9]
[1746579603195,29.96,149.2,149.13,29.9]
[1746579603399,53.59994045,149.22,149.14,7.10498151]
[1746579603598,23.69994045,149.22,149.14,7.10498151]
[1746579603797,53.65994045,149.22,149.14,7.10498151]
[1746579604297,53.65994045,149.22,149.17,7.10498151]
[1746579604501,53.65994045,149.22,149.18,29.9]
[1746579604800,53.65994045,149.22,149.18,36.6033]
[1746579604997,23.69994045,149.22,149.18,33.8333]
[1746579605294,65.11464308,149.23,149.2,7.10498151]
[1746579605893,1.91480188,149.23,149.2,7.10498151]
[1746579606095,31.83480188,149.23,149.18,33.8333]
[1746579606291,31.83480188,149.23,149.18,29.9]
[1746579607291,29.9,149.22,149.12,29.9]
[1746579607496,32.0015,149.22,149.12,29.9]
[1746579608702,6.7044,149.17,149.12,29.9]
[1746579608892,29.92,149.21,149.12,59.82]
[1746579609097,6.703,149.2,149.15,6.7046]
[1746579609298,6.703,149.2,149.16,29.88]
[1746579609694,36.6226,149.21,149.17,6.7039]
[1746579609892,61.71480188,149.23,149.16,29.88]
[1746579610102,1.91480188,149.23,149.16,59.8]
[1746579610496,1.91480188,149.23,149.17,6.2317]
[1746579610997,8.61660188,149.23,149.19,6.703]
[1746579611199,1.91480188,149.23,149.17,6.2317]
[1746579611400,1.91480188,149.23,149.17,2.1489]
[1746579611701,6.703,149.2,149.17,2.1489]
[1746579611895,1.91480188,149.23,149.17,2.1489]
[1746579612197,6.7021,149.22,149.18,6.7036]
[1746579612696,1.91480188,149.23,149.17,2.1489]
[1746579612903,8.61630188,149.23,149.19,6.7029]
[1746579613304,1.91480188,149.23,149.18,4.0309]
[1746579613692,6.7019,149.22,149.18,10.7344]
[1746579614303,6.7019,149.22,149.19,6.7031]
[1746579614799,6.7019,149.22,149.18,4.0309]
[1746579614999,6.7023,149.21,149.18,10.7343]
[1746579615203,1.91480188,149.23,149.18,10.7343]
[1746579615705,6.7021,149.22,149.19,6.7031]
[1746579615901,1.91480188,149.23,149.19,6.7031]
[1746579616306,8.61650188,149.23,149.19,6.7031]
[1746579616806,8.61650188,149.23,149.19,6.703]
[1746579617604,6.7022,149.22,149.18,10.7344]
[1746579618103,6.7023,149.21,149.18,4.0309]
[1746579618306,1.91480188,149.23,149.18,4.0309]
[1746579618608,6.7023,149.21,149.18,4.0309]
[1746579618811,1.91480188,149.23,149.18,4.0309]
[1746579619108,31.79480188,149.23,149.16,29.88]
[1746579619804,6.7037,149.18,149.16,29.88]
[1746579620309,30.18,149.2,149.16,29.88]
[1746579620310,6.7033,149.19,149.16,36.5844]
[1746579620612,30.18,149.2,149.16,36.5844]
[1746579620909,30.18,149.2,149.16,29.88]
[1746579621112,30.18,149.2,149.16,36.5844]
[1746579621413,30.18,149.2,149.16,29.88]
[1746579621915,6.7039,149.18,149.16,29.88]
[1746579622209,6.7039,149.18,149.14,6.7051]
[1746579622806,30.18,149.2,149.14,6.7051]
[1746579623013,30.18,149.2,149.13,36.5855]
[1746579623210,30.18,149.2,149.13,29.88]
[1746579623412,6.7043,149.17,149.13,36.5855]
[1746579623611,30.18,149.2,149.13,29.88]
[1746579624003,1.91480188,149.23,149.13,29.88]
[1746579624516,6.7021,149.22,149.18,6.7032]
[1746579624715,1.91480188,149.23,149.17,29.88]
[1746579625108,6.7028,149.2,149.17,29.88]
[1746579626216,6.7032,149.19,149.15,6.7048]
[1746579626414,30.12,149.2,149.14,29.88]
[1746579628018,6.7034,149.19,149.16,6.7045]
[1746579628912,30.12,149.2,149.14,29.88]
[1746579629325,6.7039,149.18,149.14,36.5851]
[1746579629816,6.7042,149.17,149.14,36.5851]
[1746579630719,6.7038,149.18,149.15,6.7049]
[1746579631020,30.06,149.19,149.14,29.88]
[1746579631220,30.06,149.19,149.17,6.704]
[1746579631813,29.88,149.22,149.14,29.88]
[1746579632009,1.91480188,149.23,149.14,59.96]
[1746579632515,1.91480188,149.23,149.2,6.7023]
[1746579632716,1.91480188,149.23,149.18,30.04]
[1746579633121,8.61630188,149.23,149.2,6.7025]
[1746579633321,1.91480188,149.23,149.18,30.04]
[1746579634422,1.91480188,149.23,149.2,6.7027]
[1746579634619,1.91480188,149.23,149.18,30.04]
[1746579635721,6.7021,149.22,149.19,6.7028]
[1746579636020,6.7021,149.22,149.18,30.04]
[1746579636219,1.91480188,149.23,149.18,30.04]
[1746579637525,8.61640188,149.23,149.2,6.7024]
[1746579637725,1.91480188,149.23,149.18,30.04]
[1746579638024,1.91480188,149.23,149.21,6.7021]
[1746579639720,8.61620188,149.23,149.2,6.7025]
[1746579641328,1.91480188,149.23,149.21,6.7022]
[1746579641529,31.85480188,149.23,149.21,6.7022]
[1746579641830,31.85480188,149.23,149.18,30.04]
[1746579642028,31.85480188,149.23,149.21,6.7022]
[1746579643423,38.55620188,149.23,149.21,6.7022]
[1746579643632,38.55620188,149.23,149.2,6.7025]
[1746579644026,38.55620188,149.23,149.18,30.04]
[1746579644230,31.85480188,149.23,149.21,6.7022]
[1746579645634,38.55620188,149.23,149.21,6.7022]
[1746579645826,38.55620188,149.23,149.18,30.04]
[1746579646222,31.85480188,149.23,149.21,6.7022]
[1746579647237,1.91480188,149.23,149.21,6.7022]
[1746579647733,8.61620188,149.23,149.21,6.7022]
[1746579648635,1.91480188,149.23,149.2,6.7026]
[1746579648826,1.91480188,149.23,149.18,30.04]
[1746579649133,6.702,149.22,149.18,30.04]
[1746579649328,6.702,149.22,149.19,6.7031]
[1746579651231,8.61620188,149.23,149.2,6.7024]
[1746579651534,1.91480188,149.23,149.18,30.04]
[1746579651835,1.91480188,149.23,149.22,6.7018]
[1746579652041,1.91480188,149.23,149.18,30.04]
[1746579652241,1.91480188,149.23,149.21,6.702]
[1746579652634,1.91480188,149.23,149.18,30.04]
[1746579652841,1.91480188,149.23,149.22,6.7018]
[1746579654841,1.91480188,149.23,149.22,13.4716468]
[1746579656847,1.91480188,149.23,149.22,6.7018]
[1746579657046,1.91480188,149.23,149.22,13.47589919]
[1746579657241,1.91480188,149.23,149.22,6.7018]
[1746579660446,1.91480188,149.23,149.22,13.47638279]
[1746579661547,1.91480188,149.23,149.22,6.7018]
[1746579661745,1.91480188,149.23,149.22,13.47599066]
[1746579661944,1.68208524,149.3,149.22,50.43070955]